{"text_format":"1","workbook":"xlsx","n_sheets":5,"sheets":["Activités","Liste de valeur","sprint ","Synthèse","Règles"],"not_rendered":{"charts":7,"images":0,"macros":0,"external_links":0,"defined_names":3,"comments":0,"pivot_tables":0},"unopened":[],"bounds":{"document_bytes":16777216,"sheet_cells":100000,"rows_first":2000,"rows_last":500,"rows_between":2000,"halvings":0,"cell_chars":16384,"cell_head_chars":4096},"cells_cut":0,"cells_raw":0,"read":"whole","date_system":"1900"}

{"sheet":"Activités","index":0,"n_rows":254,"n_cols":15,"rows_kept":254,"cut":false,"hidden":false,"merged":[]}
["Type","Id","Summary","critères d'acceptance","lien vers une autre activité  ","Points estimés","Developpeur","Status","Priority","Date création","Date dernière modification","Points réels","delta estimés /réels","Mots clefs","Sprint"]
["Tâche",1,null,null,null,12,"VMT","Développée","H","2016-06-20","2016-07-12",48,{"$f":"IF(L2=\"?\",\"?\",F2-L2)","v":-36},"MDD",1]
["Story ",2,null,null,null,"?"," ","Créée","B","2016-06-20","2016-06-20","?","?","Ergo",3]
["Tache",3,null,null,null,1,"FLT","Terminée","H","2016-06-20","2016-07-12",0.5,0.5,"ergo",1]
["Story ",4,null,null,null,"?",null,"Créée","M","2016-06-20","2016-06-20","?","?","ergo",3]
["Story ",5,null,null,null,2,"VMT","Créée","M","2016-06-20","2016-07-12","?","?","ergo",1]
["Story ",6,null,null,null,"?",null,"Créée","M","2016-06-20","2016-06-20","?","?","ergo",3]
["Story ",7,null,null,null,2,"FLT","Créée","M","2016-06-20","2016-07-12","?","?","ergo",1]
["Story ",8,null,null,null,"?",null,"Créée","M","2016-06-20","2016-06-20","?","?","ergo",3]
["Story ",9,null,null,null,"?",null,"Créée","M","2016-06-20","2016-06-20","?","?","ergo",3]
["Tache",10,null,null,null,0,null,"Rejetée","H","2016-06-20","2016-07-12",0,0,"P&O",1]
["Tache",11,null,null,null,4,"FLT","Affectée","H","2016-06-20","2016-07-12","?","?","P&O",1]
["Tache",12,null,null,null,4,"FLT","Affectée","H","2016-06-20","2016-06-28","?","?","P&O",2]
["Tache",13,null,null,null,4,"FLT","Affectée","H","2016-06-20","2016-06-28","?","?","P&O",2]
["Tache",14,null,null,null,4,"FLT","Affectée","H","2016-06-20","2016-07-12","?","?","P&O",1]
["Tache",15,null,null,null,4,"FLT","Affectée","H","2016-06-20","2016-06-28","?","?","P&O",2]
["Tache",16,null,null,null,4,"FLT","Affectée","H","2016-06-20","2016-06-28","?","?","P&O",2]
["Tache",17,null,null,null,4,"FLT","Affectée","H","2016-06-20","2016-06-28","?","?","P&O",2]
["Tache",18,null,null,null,0,"VMT","Rejetée","H","2016-06-20","2016-07-12",0,0,"migration",1]
["Tache",19,null,null,null,8,"PGD","Terminée","H","2016-06-20","2016-07-12",30,-22,"migration",1]
["Tache",20,null,null,null,6,"VMT","Affectée","H","2016-06-20","2016-07-12","?","?","migration",1]
["Tache",21,null,null,null,12,"FLT","Affectée","H","2016-06-20","2016-07-12","?","?","migration",1]
["Tache",22,null,null,null,"?",null,"Créée","H","2016-06-20","2016-06-20","?","?","migration",3]
["Tache",23,null,null,null,16,"FLT","Affectée","H","2016-06-20","2016-07-12","?","?","migration",1]
["Tache",24,null,null,null,8,"VHD","Terminée","H","2016-06-20","2016-07-12",4,4,"migration",1]
["Tache",25,null,null,1,"?",null,"Prête","H","2016-06-20","2016-07-12","?","?","migration",1]
["Tache",26,null,null,25,"?",null,"Prête","H","2016-06-20","2016-07-12","?","?","migration",1]
["Tache",27,null,null,null,"?",null,"Prête","H","2016-06-20","2016-07-12","?","?","migration",1]
["Tache",28,null,null,null,"?",null,"Prête","H","2016-06-20","2016-07-12","?","?","migration",1]
["Tache",29,null,null,null,"?",null,"Prête","H","2016-06-20","2016-07-12","?","?","migration",1]
["Tache",30,null,null,null,8,"VMT","Affectée","H","2016-06-20","2016-07-12","?","?","migration",1]
["Tache",31,null,null,30,1,"VMT","Prête","H","2016-06-20","2016-07-12","?","?","migration",1]
["Story",32,null,null,null,6,"PGD","Affectée","M","2016-06-20","2016-06-28","?","?","Génération_doc",3]
["Story",33,null,null,null,0.5,"FLT","Affectée","H","2016-06-20","2016-07-12","?","?","process",1]
["Story",34,null,null,null,0.5,"FLT","Affectée","H","2016-06-20","2016-07-12","?","?","process",1]
["Story",35,null,null,null,0.5,"FLT","Affectée","H","2016-06-20","2016-07-12","?","?","process",1]
["Story",36,null,null,null,0.5,"FLT","Affectée","M","2016-06-20","2016-07-12","?","?","process",1]
["Story",37,null,null,null,0.5,"FLT","Affectée","M","2016-06-20","2016-07-12","?","?","process",1]
["Story",38,null,null,null,0.5,"FLT","Affectée","H","2016-06-24","2016-07-12","?","?","Process",1]
["Story",39,null,null,null,0.5,"FLT","Affectée","H","2016-06-20","2016-07-12","?","?","process",1]
["Story",40,null,null,null,0.5,"FLT","Affectée","H","2016-06-20","2016-07-12","?","?","process",1]
["Story",41,null,null,null,0.5,"FLT","Affectée","H","2016-06-20","2016-07-12","?","?","process",1]
["Story",42,null,null,null,0.5,"FLT","Affectée","H","2016-06-20","2016-07-12","?","?","process",1]
["Story",43,null,null,null,0.5,"FLT","Affectée","H","2016-06-20","2016-07-12","?","?","process",1]
["Story",44,null,null,2,0.5,"FLT","Créée","M","2016-06-20","2016-07-12","?","?","process",1]
["Story",45,null,null,null,0.5,"FLT","Affectée","H","2016-06-20","2016-07-12","?","?","process",1]
["Story",46,null,null,null,0.5,"FLT","Affectée","H","2016-06-20","2016-07-12","?","?","process",1]
["Story",91,null,null,null,"?",null,"Prête","H","2016-07-05","2016-07-12","?","?","process",1]
["Story ",92,null,null,null,"?",null,"Prête","H","2016-07-05","2016-07-12","?","?","process",1]
["Story ",93,null,null,null,"?",null,"Prête","H","2016-07-05","2016-07-12","?","?","process",1]
["Story",47,null,null,null,0.5,"FLT","Affectée","H","2016-06-20","2016-07-12","?","?","process",1]
["Story",94,null,null,null,"?",null,"Prête","H","2016-07-05","2016-07-12","?","?","process",1]
["Story",49,null,null,null,0.5,"FLT","Affectée","H","2016-06-20","2016-07-12","?","?","process",1]
["Story",50,null,null,null,0.5,"FLT","Affectée","H","2016-06-20","2016-07-12","?","?","process",1]
["Story",95,null,null,null,"?",null,"Prête","H","2016-07-05","2016-07-12","?","?","process",1]
["Story",51,null,null,null,0,null,"Rejetée","M","2016-06-20","2016-07-12",0,0,"process",1]
["Story",52,null,null,null,0.5,"FLT","Affectée","H","2016-06-20","2016-07-12","?","?","process",1]
["Story",53,null,null,null,0.5,"FLT","Affectée","H","2016-06-20","2016-07-12","?","?","process",1]
["Story",54,null,null,null,0.5,"FLT","Affectée","H","2016-06-20","2016-07-12","?","?","process",1]
["Story",55,null,null,null,1,"FLT","Affectée","H","2016-06-20","2016-07-12","?","?","process",1]
["Story",56,null,null,null,"?",null,"Prête","H","2016-06-20","2016-07-12","?","?","règle",1]
["Story",57,null,null,null,"?",null,"Prête","H","2016-06-20","2016-07-12","?","?","règle",1]
["Story",60,null,null,null,0.5,"FLT","Affectée","H","2016-06-20","2016-07-12","?","?","process",1]
["Story",60,null,null,null,0.5,"FLT","Affectée","H","2016-06-20","2016-07-12","?","?","process",1]
["Story",61,null,null,null,0.5,"FLT","Affectée","H","2016-06-20","2016-07-12","?","?","process",1]
["Story",62,null,null,null,0.5,"FLT","Affectée","H","2016-06-20","2016-07-12","?",{"$f":"IF(L66=\"?\",\"?\",F66-L66)","v":"?"},"process",1]
["Story",63,null,null,null,"?","LGD","Créée","M","2016-06-20",null,"?","?","exploitation","Hors projet"]
["Story",64,null,null,null,"?","VHD","Créée","M","2016-06-20",null,"?","?","exploitation","Hors projet"]
["Story",65,null,null,null,2,"ACN","Terminée","H","2016-06-30","2016-07-12",2,0,"exploitation",1]
["Story",66,null,null,null,2,"ACN","Terminée","H","2016-06-30","2016-07-12",2,0,"exploitation",1]
["Story",67,null,null,null,1,"ACN","Terminée","H","2016-06-30","2016-07-12",1,0,"exploitation",1]
["Tâche",68,null,null,31,"?",null,"Prête",null,"2016-06-28","2016-07-12","?","?","exploitation",1]
["Story",69,null,null,68,2,"GEY/VMT","Prête","H","2016-06-30","2016-07-12","?","?","exploitation",1]
["Story",70,null,null,null,2,"PGD","Terminée","H","2016-06-28","2016-07-12",2,0,"exploitation",1]
["Tâche",74,null,null,null,3,"XDX","Terminée",null,"2016-06-28","2016-07-12",3,0,"exploitation",1]
["Tâche",75,null,null,null,"?","?","Prête",null,"2016-06-28","2016-07-12","?","?","exploitation",1]
["Tâche",77,null,null,null,2,"XDX","Terminée",null,"2016-06-28","2016-07-12",2,0,"exploitation",1]
["Tâche",78,null,null,null,"?",null,"Créée",null,"2016-06-28",null,"?","?","exploitation",3]
["Tâche",79,null,null,null,"?",null,"Créée",null,"2016-06-28",null,"?","?","exploitation",3]
["Tâche",80,null,null,null,"?",null,"Prête",null,"2016-06-28","2016-07-12","?","?","exploitation",1]
["Tâche",81,null,null,null,"?",null,"Créée",null,"2016-06-28",null,"?","?","exploitation",2]
["Tâche",82,null,null,null,"?",null,"Créée",null,"2016-06-28",null,"?","?","exploitation",2]
["Tâche",83,null,null,null,"?",null,"Créée",null,"2016-06-28",null,"?","?","exploitation",2]
["Tâche",85,null,null,null,"?",null,"Créée",null,"2016-06-28",null,"?","?","exploitation",3]
["Tâche",86,null,null,null,"?",null,"Créée",null,"2016-06-28",null,"?","?","exploitation",3]
["Tâche",87,null,null,null,"?",null,"Créée",null,"2016-06-28",null,"?","?","exploitation",3]
["Tâche",88,null,null,null,"?",null,"Créée",null,"2016-06-28",null,"?","?","exploitation",3]
["Tâche",90,null,null,null,2,null,"Prête",null,"2016-06-28","2016-07-12","?","?","exploitation",1]
["Tâche",95,null,null,null,8,"FLT","Terminée","H","2016-06-20","2016-07-12",8,0,"migration",1]
["Story ",96,null,null,null,0.5,null,"Prête","H","2016-07-05","2016-07-12","?","?","ergo",1]
["Story ",97,null,null,null,0.5,null,"Prête","H","2016-07-05","2016-07-12","?","?","ergo",1]
["Tâche ",98,null,null,null,3,"CSW","Terminée","H","2016-07-05","2016-07-12",3,0,null,1]
["Tâche ",99,null,null,null,1,"GTT","Terminée","H","2016-07-05","2016-07-12",3,-2,null,1]
["Tâche ",100,null,null,null,4,"PBZ","Terminée","H","2016-07-05","2016-07-12",4,0,null,1]
["Tache",101,null,null,null,4,"VMT","Terminée","H","2016-07-07","2016-07-12",1,3,null,1]
["Tache",102,null,null,null,4,"VMT","Terminée","H","2016-07-07","2016-07-12",0.5,3.5,null,1]
["Tache",103,null,null,null,1,"VMT","Terminée","H","2016-07-07","2016-07-12",0.5,0.5,null,1]
["Tache",104,null,null,null,1,"VMT","Terminée","H","2016-07-07","2016-07-12",1,0,null,1]
["Tache",105,null,null,null,2,"VMT","Terminée","H","2016-07-07","2016-07-12",0.5,1.5,null,1]
["Tache",106,null,null,null,0,"VMT","Terminée","H","2016-07-07","2016-07-12",0.5,-0.5,null,1]
["Tache",107,null,null,null,8,"VMT","Terminée","H","2016-07-07","2016-07-12",3,5,null,1]
["Tache",108,null,null,null,8,"VMT","Terminée","H","2016-07-07","2016-07-12",7,1,null,1]
["Tache",109,null,null,null,8,"VMT","Terminée","H","2016-07-07","2016-07-12",8,0,null,1]
["Tache",110,null,null,null,0,"VMT","Rejetée","H","2016-07-07","2016-07-12",0,0,null,1]
["Tache",113,null,null,null,10,"PGD","Prête","H","2016-07-07",null,"?","?",null,2]
["Tache",114,null,null,null,2,"VHD","Prête","H","2016-06-20","2016-07-12","?","?","migration",1]
["tache",115,null,null,null,"?","JRM","Prête",null,"2016-07-07",null,"?","?",null,2]
["Défaut",116,null,null,null,null,null,null,null,"2016-07-12",null,"?","?"]
["tache",117,null,null,null,null,null,null,null,"2016-07-12",null,"?","?"]
["Tâche",118,null,null,null,null,"?",null,null,"2016-07-12",null,"?","?"]
["Tache",119,null,null,null,8,"VHD","Prête",null,"2016-07-12",null,"?","?"]
[null,120,null,null,null,2,null,null,null,"2016-07-12",null,"?","?"]
["Tache",121,null,null,null,null,null,"Prête",null,"2016-07-12",null,"?","?"]
[null,null,null,null,null,null,null,null,null,null,null,"?","?"]
[null,null,null,null,null,null,null,null,null,null,null,"?","?"]
[null,null,null,null,null,null,null,null,null,null,null,"?","?"]
[null,null,null,null,null,null,null,null,null,null,null,"?","?"]
[null,null,null,null,null,null,null,null,null,null,null,"?","?"]
[null,null,null,null,null,null,null,null,null,null,null,"?","?"]
[null,null,null,null,null,null,null,null,null,null,null,"?","?"]
[null,null,null,null,null,null,null,null,null,null,null,"?","?"]
[null,null,null,null,null,null,null,null,null,null,null,"?","?"]
[null,null,null,null,null,null,null,null,null,null,null,"?","?"]
[null,null,null,null,null,null,null,null,null,null,null,"?","?"]
[null,null,null,null,null,null,null,null,null,null,null,"?","?"]
[null,null,null,null,null,null,null,null,null,null,null,"?","?"]
[null,null,null,null,null,null,null,null,null,null,null,"?","?"]
[null,null,null,null,null,null,null,null,null,null,null,"?","?"]
[null,null,null,null,null,null,null,null,null,null,null,"?","?"]
[null,null,null,null,null,null,null,null,null,null,null,"?",{"$f":"IF(L130=\"?\",\"?\",F130-L130)","v":"?"}]
[null,null,null,null,null,null,null,null,null,null,null,"?","?"]
[null,null,null,null,null,null,null,null,null,null,null,"?","?"]
[null,null,null,null,null,null,null,null,null,null,null,"?","?"]
[null,null,null,null,null,null,null,null,null,null,null,"?","?"]
[null,null,null,null,null,null,null,null,null,null,null,"?","?"]
[null,null,null,null,null,null,null,null,null,null,null,"?","?"]
[null,null,null,null,null,null,null,null,null,null,null,"?","?"]
[null,null,null,null,null,null,null,null,null,null,null,"?","?"]
[null,null,null,null,null,null,null,null,null,null,null,"?","?"]
[null,null,null,null,null,null,null,null,null,null,null,"?","?"]
[null,null,null,null,null,null,null,null,null,null,null,"?","?"]
[null,null,null,null,null,null,null,null,null,null,null,"?","?"]
[null,null,null,null,null,null,null,null,null,null,null,"?","?"]
[null,null,null,null,null,null,null,null,null,null,null,"?","?"]
[null,null,null,null,null,null,null,null,null,null,null,"?","?"]
[null,null,null,null,null,null,null,null,null,null,null,"?","?"]
[null,null,null,null,null,null,null,null,"*",null,null,"?","?"]
[null,null,null,null,null,null,null,null,null,null,null,"?","?"]
[null,null,null,null,null,null,null,null,null,null,null,"?","?"]
[null,null,null,null,null,null,null,null,null,null,null,"?","?"]
[null,null,null,null,null,null,null,null,null,null,null,"?","?"]
[null,null,null,null,null,null,null,null,null,null,null,"?","?"]
[null,null,null,null,null,null,null,null,null,null,null,"?","?"]
[null,null,null,null,null,null,null,null,null,null,null,"?","?"]
[null,null,null,null,null,null,null,null,null,null,null,"?","?"]
[null,null,null,null,null,null,null,null,null,null,null,"?","?"]
[null,null,null,null,null,null,null,null,null,null,null,"?","?"]
[null,null,null,null,null,null,null,null,null,null,null,"?","?"]
[null,null,null,null,null,null,null,null,null,null,null,"?","?"]
[null,null,null,null,null,null,null,null,null,null,null,"?","?"]
[null,null,null,null,null,null,null,null,null,null,null,"?","?"]
[null,null,null,null,null,null,null,null,null,null,null,"?","?"]
[null,null,null,null,null,null,null,null,null,null,null,"?","?"]
[null,null,null,null,null,null,null,null,null,null,null,"?","?"]
[null,null,null,null,null,null,null,null,null,null,null,"?","?"]
[null,null,null,null,null,null,null,null,null,null,null,"?","?"]
[null,null,null,null,null,null,null,null,null,null,null,"?","?"]
[null,null,null,null,null,null,null,null,null,null,null,"?","?"]
[null,null,null,null,null,null,null,null,null,null,null,"?","?"]
[null,null,null,null,null,null,null,null,null,null,null,"?","?"]
[null,null,null,null,null,null,null,null,null,null,null,"?","?"]
[null,null,null,null,null,null,null,null,null,null,null,"?","?"]
[null,null,null,null,null,null,null,null,null,null,null,"?","?"]
[null,null,null,null,null,null,null,null,null,null,null,"?","?"]
[null,null,null,null,null,null,null,null,null,null,null,"?","?"]
[null,null,null,null,null,null,null,null,null,null,null,"?","?"]
[null,null,null,null,null,null,null,null,null,null,null,"?","?"]
[null,null,null,null,null,null,null,null,null,null,null,"?","?"]
[null,null,null,null,null,null,null,null,null,null,null,"?","?"]
[null,null,null,null,null,null,null,null,null,null,null,"?","?"]
[null,null,null,null,null,null,null,null,null,null,null,"?","?"]
[null,null,null,null,null,null,null,null,null,null,null,"?","?"]
[null,null,null,null,null,null,null,null,null,null,null,"?","?"]
[null,null,null,null,null,null,null,null,null,null,null,"?","?"]
[null,null,null,null,null,null,null,null,null,null,null,"?","?"]
[null,null,null,null,null,null,null,null,null,null,null,"?","?"]
[null,null,null,null,null,null,null,null,null,null,null,"?","?"]
[null,null,null,null,null,null,null,null,null,null,null,"?","?"]
[null,null,null,null,null,null,null,null,null,null,null,"?","?"]
[null,null,null,null,null,null,null,null,null,null,null,"?","?"]
[null,null,null,null,null,null,null,null,null,null,null,"?","?"]
[null,null,null,null,null,null,null,null,null,null,null,"?","?"]
[null,null,null,null,null,null,null,null,null,null,null,"?","?"]
[null,null,null,null,null,null,null,null,null,null,null,"?",{"$f":"IF(L194=\"?\",\"?\",F194-L194)","v":"?"}]
[null,null,null,null,null,null,null,null,null,null,null,"?","?"]
[null,null,null,null,null,null,null,null,null,null,null,"?","?"]
[null,null,null,null,null,null,null,null,null,null,null,"?","?"]
[null,null,null,null,null,null,null,null,null,null,null,"?","?"]
[null,null,null,null,null,null,null,null,null,null,null,"?","?"]
[null,null,null,null,null,null,null,null,null,null,null,"?","?"]
[null,null,null,null,null,null,null,null,null,null,null,"?","?"]
[null,null,null,null,null,null,null,null,null,null,null,"?","?"]
[null,null,null,null,null,null,null,null,null,null,null,"?","?"]
[null,null,null,null,null,null,null,null,null,null,null,"?","?"]
[null,null,null,null,null,null,null,null,null,null,null,"?","?"]
[null,null,null,null,null,null,null,null,null,null,null,"?","?"]
[null,null,null,null,null,null,null,null,null,null,null,"?","?"]
[null,null,null,null,null,null,null,null,null,null,null,"?","?"]
[null,null,null,null,null,null,null,null,null,null,null,"?","?"]
[null,null,null,null,null,null,null,null,null,null,null,"?","?"]
[null,null,null,null,null,null,null,null,null,null,null,"?","?"]
[null,null,null,null,null,null,null,null,null,null,null,"?","?"]
[null,null,null,null,null,null,null,null,null,null,null,"?","?"]
[null,null,null,null,null,null,null,null,null,null,null,"?","?"]
[null,null,null,null,null,null,null,null,null,null,null,"?","?"]
[null,null,null,null,null,null,null,null,null,null,null,"?","?"]
[null,null,null,null,null,null,null,null,null,null,null,"?","?"]
[null,null,null,null,null,null,null,null,null,null,null,"?","?"]
[null,null,null,null,null,null,null,null,null,null,null,"?","?"]
[null,null,null,null,null,null,null,null,null,null,null,"?","?"]
[null,null,null,null,null,null,null,null,null,null,null,"?","?"]
[null,null,null,null,null,null,null,null,null,null,null,"?","?"]
[null,null,null,null,null,null,null,null,null,null,null,"?","?"]
[null,null,null,null,null,null,null,null,null,null,null,"?","?"]
[null,null,null,null,null,null,null,null,null,null,null,"?","?"]
[null,null,null,null,null,null,null,null,null,null,null,"?","?"]
[null,null,null,null,null,null,null,null,null,null,null,"?","?"]
[null,null,null,null,null,null,null,null,null,null,null,"?","?"]
[null,null,null,null,null,null,null,null,null,null,null,"?","?"]
[null,null,null,null,null,null,null,null,null,null,null,"?","?"]
[null,null,null,null,null,null,null,null,null,null,null,"?","?"]
[null,null,null,null,null,null,null,null,null,null,null,"?","?"]
[null,null,null,null,null,null,null,null,null,null,null,"?","?"]
[null,null,null,null,null,null,null,null,null,null,null,"?","?"]
[null,null,null,null,null,null,null,null,null,null,null,"?","?"]
[null,null,null,null,null,null,null,null,null,null,null,"?","?"]
[null,null,null,null,null,null,null,null,null,null,null,"?",{"$f":"IF(L237=\"?\",\"?\",F237-L237)","v":"?"}]
[null,null,null,null,null,null,null,null,null,null,null,"?","?"]
[null,null,null,null,null,null,null,null,null,null,null,"?","?"]
[null,null,null,null,null,null,null,null,null,null,null,"?","?"]
[null,null,null,null,null,null,null,null,null,null,null,"?","?"]
[null,null,null,null,null,null,null,null,null,null,null,"?","?"]
[null,null,null,null,null,null,null,null,null,null,null,"?","?"]
[null,null,null,null,null,null,null,null,null,null,null,"?","?"]
[null,null,null,null,null,null,null,null,null,null,null,"?","?"]
[null,null,null,null,null,null,null,null,null,null,null,"?","?"]
[null,null,null,null,null,null,null,null,null,null,null,"?","?"]
[null,null,null,null,null,null,null,null,null,null,null,"?","?"]
[null,null,null,null,null,null,null,null,null,null,null,"?","?"]
[null,null,null,null,null,null,null,null,null,null,null,"?","?"]
[]
[]
[]
[null,null,"h"]

{"sheet":"Liste de valeur","index":1,"n_rows":9,"n_cols":15,"rows_kept":9,"cut":false,"hidden":false,"merged":[]}
["Type","Id","Summary","critères d'acceptance","lien vers une autre activité  ","createur","Developpeur","Status","Priority","Date création","Date dernière modification","Points estimés","Points réels","Tags (metier ou technique)","Sprint"]
["Defaut","n° chronologique","Contenu libre avec les régles suivantes : \nun defaut référence la tache/doc/story concernée","Contenu libre","id de l'activité (cas rare dans un projet agile)","PO ou developpeur","un developpeur ou vide ","créee","H","date","date",0.5,null,"à définir avec le PO et les developpeurs. Peut-etre vide","n° ou vide"]
["Tache",null,null,null,null,null,null,"evaluée","M",null,null,1]
["Document",null,null,null,null,null,null,"affectée","B",null,null,2]
["Story",null,null,null,null,null,null,"développée",null,null,null,3]
[null,null,null,null,null,null,null,"terminée",null,null,null,5]
[null,null,null,null,null,null,null,"rejetée/invalide",null,null,null,8]
[null,null,null,null,null,null,null,null,null,null,null,13]
[null,null,null,null,null,null,null,null,null,null,null,"Si >13, \nà découper"]

{"sheet":"sprint ","index":2,"n_rows":40,"n_cols":30,"rows_kept":40,"cut":false,"hidden":false,"merged":[]}
["Sprint","# créée","# prête","# Evaluée","# Affectée","# Développée","# Terminée","# Rejetée","# sans point","Non Vide","manquant","mal saisie","Max PPS","∑ Charge","VHD","XDX","PGD","FVB","ACN","JRM","VMT","FLT","CSW","GTT","PBZ","GEY","JDY"]
["All",{"$f":"COUNTIF(Activités!H:H,\"Créée\")","v":20},{"$f":"COUNTIF(Activités!H:H,\"Prête\")","v":25},{"$f":"COUNTIF(Activités!H:H,\"Evaluée\")","v":0},{"$f":"COUNTIF(Activités!H:H,\"Affectée\")","v":36},{"$f":"COUNTIF(Activités!H:H,\"Développée\")","v":1},{"$f":"COUNTIF(Activités!H:H,\"Terminée\")","v":22},{"$f":"COUNTIF(Activités!H:H,\"Rejetée\")","v":4},{"$f":"COUNTIF(Activités!H:H,I1)","v":0},{"$f":"COUNTA(Activités!H$2:H$65529)","v":108},{"$f":"COUNTA(Activités!C$2:C$65529)-J2","v":-107},{"$f":"J2-SUM(Activités!P2:W2)","v":108},null,{"$f":"SUM(O2:AD2)","v":207},{"$f":"SUMIF(Activités!G:G,O1,Activités!F:F)","v":18},{"$f":"SUMIF(Activités!G:G,P1,Activités!F:F)","v":5},{"$f":"SUMIF(Activités!G:G,Q1,Activités!F:F)","v":26},{"$f":"SUMIF(Activités!G:G,R1,Activités!F:F)","v":0},{"$f":"SUMIF(Activités!G:G,S1,Activités!F:F)","v":5},{"$f":"SUMIF(Activités!G:G,T1,Activités!F:F)","v":0},{"$f":"SUMIF(Activités!G:G,U1,Activités!F:F)","v":65},{"$f":"SUMIF(Activités!G:G,V1,Activités!F:F)","v":80},{"$f":"SUMIF(Activités!G:G,W1,Activités!F:F)","v":3},{"$f":"SUMIF(Activités!G:G,X1,Activités!F:F)","v":1},{"$f":"SUMIF(Activités!G:G,Y1,Activités!F:F)","v":4},{"$f":"SUMIF(Activités!G:G,Z1,Activités!F:F)","v":0},{"$f":"SUMIF(Activités!G:G,AA1,Activités!F:F)","v":0},{"$f":"SUMIF(Activités!G:G,AB1,Activités!F:F)","v":0},{"$f":"SUMIF(Activités!G:G,AC1,Activités!F:F)","v":0},{"$f":"SUMIF(Activités!G:G,AD1,Activités!F:F)","v":0}]
[1,{"$f":"COUNTIFS(Activités!H:H,\"Créée\",Activités!O:O,1)","v":3},{"$f":"COUNTIFS(Activités!H:H,\"Prête\",Activités!O:O,1)","v":21},{"$f":"COUNTIFS(Activités!H:H,\"Evaluée\",Activités!O:O,1)","v":0},{"$f":"COUNTIFS(Activités!H:H,\"Affectée\",Activités!O:O,1)","v":30},{"$f":"COUNTIFS(Activités!H:H,\"Développée\",Activités!O:O,1)","v":1},{"$f":"COUNTIFS(Activités!H:H,\"Terminée\",Activités!O:O,1)","v":22},{"$f":"COUNTIFS(Activités!H:H,\"Rejetée\",Activités!O:O,1)","v":4},{"$f":"COUNTIFS(Activités!F:F,\"?\",Activités!O:O,1)","v":15},null,null,null,88,{"$f":"SUM(O3:AD3)","v":163},{"$f":"SUMIFS(Activités!F:F,Activités!G:G,O1,Activités!O:O,1)","v":10},{"$f":"SUMIFS(Activités!F:F,Activités!G:G,P1,Activités!O:O,1)","v":5},{"$f":"SUMIFS(Activités!F:F,Activités!G:G,Q1,Activités!O:O,1)","v":10},{"$f":"SUMIFS(Activités!F:F,Activités!G:G,R1,Activités!O:O,1)","v":0},{"$f":"SUMIFS(Activités!F:F,Activités!G:G,S1,Activités!O:O,1)","v":5},{"$f":"SUMIFS(Activités!F:F,Activités!G:G,T1,Activités!O:O,1)","v":0},{"$f":"SUMIFS(Activités!F:F,Activités!G:G,U1,Activités!O:O,1)","v":65},{"$f":"SUMIFS(Activités!F:F,Activités!G:G,V1,Activités!O:O,1)","v":60},{"$f":"SUMIFS(Activités!F:F,Activités!G:G,W1,Activités!O:O,1)","v":3},{"$f":"SUMIFS(Activités!F:F,Activités!G:G,X1,Activités!O:O,1)","v":1},{"$f":"SUMIFS(Activités!F:F,Activités!G:G,Y1,Activités!O:O,1)","v":4},{"$f":"SUMIFS(Activités!F:F,Activités!G:G,Z1,Activités!O:O,1)","v":0},{"$f":"SUMIFS(Activités!F:F,Activités!G:G,AA1,Activités!O:O,1)","v":0}]
[2,{"$f":"COUNTIFS(Activités!H:H,\"Créée\",Activités!O:O,2)","v":3},{"$f":"COUNTIFS(Activités!H:H,\"Prête\",Activités!O:O,2)","v":2},{"$f":"COUNTIFS(Activités!H:H,\"Evaluée\",Activités!O:O,2)","v":0},{"$f":"COUNTIFS(Activités!H:H,\"Affectée\",Activités!O:O,2)","v":5},{"$f":"COUNTIFS(Activités!H:H,\"Développée\",Activités!O:O,2)","v":0},{"$f":"COUNTIFS(Activités!H:H,\"Terminée\",Activités!O:O,2)","v":0},{"$f":"COUNTIFS(Activités!H:H,\"Rejetée\",Activités!O:O,2)","v":0},{"$f":"COUNTIFS(Activités!F:F,\"?\",Activités!O:O,2)","v":4},null,null,null,64,{"$f":"SUM(O4:AD4)","v":30},{"$f":"SUMIFS(Activités!F:F,Activités!G:G,O1,Activités!O:O,2)","v":0},{"$f":"SUMIFS(Activités!F:F,Activités!G:G,P1,Activités!O:O,2)","v":0},{"$f":"SUMIFS(Activités!F:F,Activités!G:G,Q1,Activités!O:O,2)","v":10},{"$f":"SUMIFS(Activités!F:F,Activités!G:G,R1,Activités!O:O,2)","v":0},{"$f":"SUMIFS(Activités!F:F,Activités!G:G,S1,Activités!O:O,2)","v":0},{"$f":"SUMIFS(Activités!F:F,Activités!G:G,T1,Activités!O:O,2)","v":0},{"$f":"SUMIFS(Activités!F:F,Activités!G:G,U1,Activités!O:O,2)","v":0},{"$f":"SUMIFS(Activités!F:F,Activités!G:G,V1,Activités!O:O,2)","v":20},{"$f":"SUMIFS(Activités!F:F,Activités!G:G,W1,Activités!O:O,2)","v":0},{"$f":"SUMIFS(Activités!F:F,Activités!G:G,X1,Activités!O:O,2)","v":0},{"$f":"SUMIFS(Activités!F:F,Activités!G:G,Y1,Activités!O:O,2)","v":0},{"$f":"SUMIFS(Activités!F:F,Activités!G:G,Z1,Activités!O:O,2)","v":0},{"$f":"SUMIFS(Activités!F:F,Activités!G:G,AA1,Activités!O:O,2)","v":0}]
[3,{"$f":"COUNTIFS(Activités!H:H,\"Créée\",Activités!O:O,3)","v":12},{"$f":"COUNTIFS(Activités!H:H,\"Prête\",Activités!O:O,3)","v":0},{"$f":"COUNTIFS(Activités!H:H,\"Evaluée\",Activités!O:O,3)","v":0},{"$f":"COUNTIFS(Activités!H:H,\"Affectée\",Activités!O:O,3)","v":1},{"$f":"COUNTIFS(Activités!H:H,\"Développée\",Activités!O:O,3)","v":0},{"$f":"COUNTIFS(Activités!H:H,\"Terminée\",Activités!O:O,3)","v":0},{"$f":"COUNTIFS(Activités!H:H,\"Rejetée\",Activités!O:O,3)","v":0},{"$f":"COUNTIFS(Activités!F:F,\"?\",Activités!O:O,3)","v":12},null,null,null,64,{"$f":"SUM(O5:AD5)","v":6},{"$f":"SUMIFS(Activités!F:F,Activités!G:G,O1,Activités!O:O,3)","v":0},{"$f":"SUMIFS(Activités!F:F,Activités!G:G,P1,Activités!O:O,3)","v":0},{"$f":"SUMIFS(Activités!F:F,Activités!G:G,Q1,Activités!O:O,3)","v":6},{"$f":"SUMIFS(Activités!F:F,Activités!G:G,R1,Activités!O:O,3)","v":0},{"$f":"SUMIFS(Activités!F:F,Activités!G:G,S1,Activités!O:O,3)","v":0},{"$f":"SUMIFS(Activités!F:F,Activités!G:G,T1,Activités!O:O,3)","v":0},{"$f":"SUMIFS(Activités!F:F,Activités!G:G,U1,Activités!O:O,3)","v":0},{"$f":"SUMIFS(Activités!F:F,Activités!G:G,V1,Activités!O:O,3)","v":0},{"$f":"SUMIFS(Activités!F:F,Activités!G:G,W1,Activités!O:O,3)","v":0},{"$f":"SUMIFS(Activités!F:F,Activités!G:G,X1,Activités!O:O,3)","v":0},{"$f":"SUMIFS(Activités!F:F,Activités!G:G,Y1,Activités!O:O,3)","v":0},{"$f":"SUMIFS(Activités!F:F,Activités!G:G,Z1,Activités!O:O,3)","v":0},{"$f":"SUMIFS(Activités!F:F,Activités!G:G,AA1,Activités!O:O,3)","v":0}]
[4,{"$f":"COUNTIFS(Activités!H:H,\"Créée\",Activités!O:O,4)","v":0},{"$f":"COUNTIFS(Activités!H:H,\"Prête\",Activités!O:O,4)","v":0},{"$f":"COUNTIFS(Activités!H:H,\"Evaluée\",Activités!O:O,4)","v":0},{"$f":"COUNTIFS(Activités!H:H,\"Affectée\",Activités!O:O,4)","v":0},{"$f":"COUNTIFS(Activités!H:H,\"Développée\",Activités!O:O,4)","v":0},{"$f":"COUNTIFS(Activités!H:H,\"Terminée\",Activités!O:O,4)","v":0},{"$f":"COUNTIFS(Activités!H:H,\"Rejetée\",Activités!O:O,4)","v":0},{"$f":"COUNTIFS(Activités!F:F,\"?\",Activités!O:O,4)","v":0},null,null,null,64,0,{"$f":"SUMIFS(Activités!F:F,Activités!G:G,O1,Activités!O:O,4)","v":0},{"$f":"SUMIFS(Activités!F:F,Activités!G:G,P1,Activités!O:O,4)","v":0},{"$f":"SUMIFS(Activités!F:F,Activités!G:G,Q1,Activités!O:O,4)","v":0},{"$f":"SUMIFS(Activités!F:F,Activités!G:G,R1,Activités!O:O,4)","v":0},{"$f":"SUMIFS(Activités!F:F,Activités!G:G,S1,Activités!O:O,4)","v":0},{"$f":"SUMIFS(Activités!F:F,Activités!G:G,T1,Activités!O:O,4)","v":0},{"$f":"SUMIFS(Activités!F:F,Activités!G:G,U1,Activités!O:O,4)","v":0},{"$f":"SUMIFS(Activités!F:F,Activités!G:G,V1,Activités!O:O,4)","v":0},{"$f":"SUMIFS(Activités!F:F,Activités!G:G,W1,Activités!O:O,4)","v":0},{"$f":"SUMIFS(Activités!F:F,Activités!G:G,X1,Activités!O:O,4)","v":0},{"$f":"SUMIFS(Activités!F:F,Activités!G:G,Y1,Activités!O:O,4)","v":0},{"$f":"SUMIFS(Activités!F:F,Activités!G:G,Z1,Activités!O:O,4)","v":0},{"$f":"SUMIFS(Activités!F:F,Activités!G:G,AA1,Activités!O:O,4)","v":0}]
[5,{"$f":"COUNTIFS(Activités!H:H,\"Créée\",Activités!O:O,5)","v":0},{"$f":"COUNTIFS(Activités!H:H,\"Prête\",Activités!O:O,5)","v":0},{"$f":"COUNTIFS(Activités!H:H,\"Evaluée\",Activités!O:O,5)","v":0},{"$f":"COUNTIFS(Activités!H:H,\"Affectée\",Activités!O:O,5)","v":0},{"$f":"COUNTIFS(Activités!H:H,\"Développée\",Activités!O:O,5)","v":0},{"$f":"COUNTIFS(Activités!H:H,\"Terminée\",Activités!O:O,5)","v":0},{"$f":"COUNTIFS(Activités!H:H,\"Rejetée\",Activités!O:O,5)","v":0},{"$f":"COUNTIFS(Activités!F:F,\"?\",Activités!O:O,5)","v":0},null,null,null,null,0,{"$f":"SUMIFS(Activités!F:F,Activités!G:G,O1,Activités!O:O,5)","v":0},{"$f":"SUMIFS(Activités!F:F,Activités!G:G,P1,Activités!O:O,5)","v":0},{"$f":"SUMIFS(Activités!F:F,Activités!G:G,Q1,Activités!O:O,5)","v":0},{"$f":"SUMIFS(Activités!F:F,Activités!G:G,R1,Activités!O:O,5)","v":0},{"$f":"SUMIFS(Activités!F:F,Activités!G:G,S1,Activités!O:O,5)","v":0},{"$f":"SUMIFS(Activités!F:F,Activités!G:G,T1,Activités!O:O,5)","v":0},{"$f":"SUMIFS(Activités!F:F,Activités!G:G,U1,Activités!O:O,5)","v":0},{"$f":"SUMIFS(Activités!F:F,Activités!G:G,V1,Activités!O:O,5)","v":0},{"$f":"SUMIFS(Activités!F:F,Activités!G:G,W1,Activités!O:O,5)","v":0},{"$f":"SUMIFS(Activités!F:F,Activités!G:G,X1,Activités!O:O,5)","v":0},{"$f":"SUMIFS(Activités!F:F,Activités!G:G,Y1,Activités!O:O,5)","v":0},{"$f":"SUMIFS(Activités!F:F,Activités!G:G,Z1,Activités!O:O,5)","v":0},{"$f":"SUMIFS(Activités!F:F,Activités!G:G,AA1,Activités!O:O,5)","v":0}]
[6,{"$f":"COUNTIFS(Activités!H:H,\"Créée\",Activités!O:O,6)","v":0},{"$f":"COUNTIFS(Activités!H:H,\"Prête\",Activités!O:O,6)","v":0},{"$f":"COUNTIFS(Activités!H:H,\"Evaluée\",Activités!O:O,6)","v":0},{"$f":"COUNTIFS(Activités!H:H,\"Affectée\",Activités!O:O,6)","v":0},{"$f":"COUNTIFS(Activités!H:H,\"Développée\",Activités!O:O,6)","v":0},{"$f":"COUNTIFS(Activités!H:H,\"Terminée\",Activités!O:O,6)","v":0},{"$f":"COUNTIFS(Activités!H:H,\"Rejetée\",Activités!O:O,6)","v":0},{"$f":"COUNTIFS(Activités!F:F,\"?\",Activités!O:O,6)","v":0},null,null,null,null,0,{"$f":"SUMIFS(Activités!F:F,Activités!G:G,O1,Activités!O:O,6)","v":0},{"$f":"SUMIFS(Activités!F:F,Activités!G:G,P1,Activités!O:O,6)","v":0},{"$f":"SUMIFS(Activités!F:F,Activités!G:G,Q1,Activités!O:O,6)","v":0},{"$f":"SUMIFS(Activités!F:F,Activités!G:G,R1,Activités!O:O,6)","v":0},{"$f":"SUMIFS(Activités!F:F,Activités!G:G,S1,Activités!O:O,6)","v":0},{"$f":"SUMIFS(Activités!F:F,Activités!G:G,T1,Activités!O:O,6)","v":0},{"$f":"SUMIFS(Activités!F:F,Activités!G:G,U1,Activités!O:O,6)","v":0},{"$f":"SUMIFS(Activités!F:F,Activités!G:G,V1,Activités!O:O,6)","v":0},{"$f":"SUMIFS(Activités!F:F,Activités!G:G,W1,Activités!O:O,6)","v":0},{"$f":"SUMIFS(Activités!F:F,Activités!G:G,X1,Activités!O:O,6)","v":0},{"$f":"SUMIFS(Activités!F:F,Activités!G:G,Y1,Activités!O:O,6)","v":0},{"$f":"SUMIFS(Activités!F:F,Activités!G:G,Z1,Activités!O:O,6)","v":0},{"$f":"SUMIFS(Activités!F:F,Activités!G:G,AA1,Activités!O:O,6)","v":0}]
[7,{"$f":"COUNTIFS(Activités!H:H,\"Créée\",Activités!O:O,7)","v":0},{"$f":"COUNTIFS(Activités!H:H,\"Prête\",Activités!O:O,7)","v":0},{"$f":"COUNTIFS(Activités!H:H,\"Evaluée\",Activités!O:O,7)","v":0},{"$f":"COUNTIFS(Activités!H:H,\"Affectée\",Activités!O:O,7)","v":0},{"$f":"COUNTIFS(Activités!H:H,\"Développée\",Activités!O:O,7)","v":0},{"$f":"COUNTIFS(Activités!H:H,\"Terminée\",Activités!O:O,7)","v":0},{"$f":"COUNTIFS(Activités!H:H,\"Rejetée\",Activités!O:O,7)","v":0},{"$f":"COUNTIFS(Activités!F:F,\"?\",Activités!O:O,7)","v":0},null,null,null,null,0,{"$f":"SUMIFS(Activités!F:F,Activités!G:G,O1,Activités!O:O,7)","v":0},{"$f":"SUMIFS(Activités!F:F,Activités!G:G,P1,Activités!O:O,7)","v":0},{"$f":"SUMIFS(Activités!F:F,Activités!G:G,Q1,Activités!O:O,7)","v":0},{"$f":"SUMIFS(Activités!F:F,Activités!G:G,R1,Activités!O:O,7)","v":0},{"$f":"SUMIFS(Activités!F:F,Activités!G:G,S1,Activités!O:O,7)","v":0},{"$f":"SUMIFS(Activités!F:F,Activités!G:G,T1,Activités!O:O,7)","v":0},{"$f":"SUMIFS(Activités!F:F,Activités!G:G,U1,Activités!O:O,7)","v":0},{"$f":"SUMIFS(Activités!F:F,Activités!G:G,V1,Activités!O:O,7)","v":0},{"$f":"SUMIFS(Activités!F:F,Activités!G:G,W1,Activités!O:O,7)","v":0},{"$f":"SUMIFS(Activités!F:F,Activités!G:G,X1,Activités!O:O,7)","v":0},{"$f":"SUMIFS(Activités!F:F,Activités!G:G,Y1,Activités!O:O,7)","v":0},{"$f":"SUMIFS(Activités!F:F,Activités!G:G,Z1,Activités!O:O,7)","v":0},{"$f":"SUMIFS(Activités!F:F,Activités!G:G,AA1,Activités!O:O,7)","v":0}]
[8,{"$f":"COUNTIFS(Activités!H:H,\"Créée\",Activités!O:O,8)","v":0},{"$f":"COUNTIFS(Activités!H:H,\"Prête\",Activités!O:O,8)","v":0},{"$f":"COUNTIFS(Activités!H:H,\"Evaluée\",Activités!O:O,8)","v":0},{"$f":"COUNTIFS(Activités!H:H,\"Affectée\",Activités!O:O,8)","v":0},{"$f":"COUNTIFS(Activités!H:H,\"Développée\",Activités!O:O,8)","v":0},{"$f":"COUNTIFS(Activités!H:H,\"Terminée\",Activités!O:O,8)","v":0},{"$f":"COUNTIFS(Activités!H:H,\"Rejetée\",Activités!O:O,8)","v":0},{"$f":"COUNTIFS(Activités!F:F,\"?\",Activités!O:O,8)","v":0},null,null,null,null,0,{"$f":"SUMIFS(Activités!F:F,Activités!G:G,O1,Activités!O:O,8)","v":0},{"$f":"SUMIFS(Activités!F:F,Activités!G:G,P1,Activités!O:O,8)","v":0},{"$f":"SUMIFS(Activités!F:F,Activités!G:G,Q1,Activités!O:O,8)","v":0},{"$f":"SUMIFS(Activités!F:F,Activités!G:G,R1,Activités!O:O,8)","v":0},{"$f":"SUMIFS(Activités!F:F,Activités!G:G,S1,Activités!O:O,8)","v":0},{"$f":"SUMIFS(Activités!F:F,Activités!G:G,T1,Activités!O:O,8)","v":0},{"$f":"SUMIFS(Activités!F:F,Activités!G:G,U1,Activités!O:O,8)","v":0},{"$f":"SUMIFS(Activités!F:F,Activités!G:G,V1,Activités!O:O,8)","v":0},{"$f":"SUMIFS(Activités!F:F,Activités!G:G,W1,Activités!O:O,8)","v":0},{"$f":"SUMIFS(Activités!F:F,Activités!G:G,X1,Activités!O:O,8)","v":0},{"$f":"SUMIFS(Activités!F:F,Activités!G:G,Y1,Activités!O:O,8)","v":0},{"$f":"SUMIFS(Activités!F:F,Activités!G:G,Z1,Activités!O:O,8)","v":0},{"$f":"SUMIFS(Activités!F:F,Activités!G:G,AA1,Activités!O:O,8)","v":0}]
[9]
[10]
[]
[null,"point créée","point prête","point Evaluée","point Affectée","point Développée","point Terminée","point Rejetée","Point Moy x #sans point",null,null,null,{"$f":"TODAY()","v":"2016-08-03"}]
["All",{"$f":"SUMIFS(Activités!F:F,Activités!H:H,\"Créée\")","v":4.5},{"$f":"SUMIFS(Activités!F:F,Activités!H:H,\"Prête\")","v":26},{"$f":"SUMIFS(Activités!F:F,Activités!H:H,\"Evaluée\")","v":0},{"$f":"SUMIFS(Activités!F:F,Activités!H:H,\"Affectée\")","v":88.5},{"$f":"SUMIFS(Activités!F:F,Activités!H:H,\"Développée\")","v":12},{"$f":"SUMIFS(Activités!F:F,Activités!H:H,\"Terminée\")","v":81},{"$f":"SUMIFS(Activités!F:F,Activités!H:H,\"Rejetée\")","v":0},{"$f":"SUM(B15:H15)/J2","v":1.962962962962963}]
[1,{"$f":"SUMIFS(Activités!F:F,Activités!H:H,\"Créée\",Activités!O:O,1)","v":4.5},{"$f":"SUMIFS(Activités!F:F,Activités!H:H,\"Prête\",Activités!O:O,1)","v":8},{"$f":"SUMIFS(Activités!F:F,Activités!H:H,\"Evaluée\",Activités!O:O,1)","v":0},{"$f":"SUMIFS(Activités!F:F,Activités!H:H,\"Affectée\",Activités!O:O,1)","v":62.5},{"$f":"SUMIFS(Activités!F:F,Activités!H:H,\"Développée\",Activités!O:O,1)","v":12},{"$f":"SUMIFS(Activités!F:F,Activités!H:H,\"Terminée\",Activités!O:O,1)","v":81},{"$f":"SUMIFS(Activités!F:F,Activités!H:H,\"Rejetée\",Activités!O:O,1)","v":0},{"$f":"SUM(B16:H16)/SUM(B3:H3)*I3","v":31.111111111111111}]
[2,{"$f":"SUMIFS(Activités!F:F,Activités!H:H,\"Créée\",Activités!O:O,2)","v":0},{"$f":"SUMIFS(Activités!F:F,Activités!H:H,\"Prête\",Activités!O:O,2)","v":10},{"$f":"SUMIFS(Activités!F:F,Activités!H:H,\"Evaluée\",Activités!O:O,2)","v":0},{"$f":"SUMIFS(Activités!F:F,Activités!H:H,\"Affectée\",Activités!O:O,2)","v":20},{"$f":"SUMIFS(Activités!F:F,Activités!H:H,\"Développée\",Activités!O:O,2)","v":0},{"$f":"SUMIFS(Activités!F:F,Activités!H:H,\"Terminée\",Activités!O:O,2)","v":0},{"$f":"SUMIFS(Activités!F:F,Activités!H:H,\"Rejetée\",Activités!O:O,2)","v":0},{"$f":"SUM(B17:H17)/SUM(B4:H4)*I4","v":12}]
[3,{"$f":"SUMIFS(Activités!F:F,Activités!H:H,\"Créée\",Activités!O:O,3)","v":0},{"$f":"SUMIFS(Activités!F:F,Activités!H:H,\"Prête\",Activités!O:O,3)","v":0},{"$f":"SUMIFS(Activités!F:F,Activités!H:H,\"Evaluée\",Activités!O:O,3)","v":0},{"$f":"SUMIFS(Activités!F:F,Activités!H:H,\"Affectée\",Activités!O:O,3)","v":6},{"$f":"SUMIFS(Activités!F:F,Activités!H:H,\"Développée\",Activités!O:O,3)","v":0},{"$f":"SUMIFS(Activités!F:F,Activités!H:H,\"Terminée\",Activités!O:O,3)","v":0},{"$f":"SUMIFS(Activités!F:F,Activités!H:H,\"Rejetée\",Activités!O:O,3)","v":0},{"$f":"SUM(B18:H18)/SUM(B5:H5)*I5","v":5.5384615384615383}]
[4,{"$f":"SUMIFS(Activités!F:F,Activités!H:H,\"Créée\",Activités!O:O,4)","v":0},{"$f":"SUMIFS(Activités!F:F,Activités!H:H,\"Prête\",Activités!O:O,4)","v":0},{"$f":"SUMIFS(Activités!F:F,Activités!H:H,\"Evaluée\",Activités!O:O,4)","v":0},{"$f":"SUMIFS(Activités!F:F,Activités!H:H,\"Affectée\",Activités!O:O,4)","v":0},{"$f":"SUMIFS(Activités!F:F,Activités!H:H,\"Développée\",Activités!O:O,4)","v":0},{"$f":"SUMIFS(Activités!F:F,Activités!H:H,\"Terminée\",Activités!O:O,4)","v":0},{"$f":"SUMIFS(Activités!F:F,Activités!H:H,\"Rejetée\",Activités!O:O,4)","v":0}]
[5,{"$f":"SUMIFS(Activités!F:F,Activités!H:H,\"Créée\",Activités!O:O,5)","v":0},{"$f":"SUMIFS(Activités!F:F,Activités!H:H,\"Prête\",Activités!O:O,5)","v":0},{"$f":"SUMIFS(Activités!F:F,Activités!H:H,\"Evaluée\",Activités!O:O,5)","v":0},{"$f":"SUMIFS(Activités!F:F,Activités!H:H,\"Affectée\",Activités!O:O,5)","v":0},{"$f":"SUMIFS(Activités!F:F,Activités!H:H,\"Développée\",Activités!O:O,5)","v":0},{"$f":"SUMIFS(Activités!F:F,Activités!H:H,\"Terminée\",Activités!O:O,5)","v":0},{"$f":"SUMIFS(Activités!F:F,Activités!H:H,\"Rejetée\",Activités!O:O,5)","v":0}]
[6,{"$f":"SUMIFS(Activités!F:F,Activités!H:H,\"Créée\",Activités!O:O,6)","v":0},{"$f":"SUMIFS(Activités!F:F,Activités!H:H,\"Prête\",Activités!O:O,6)","v":0},{"$f":"SUMIFS(Activités!F:F,Activités!H:H,\"Evaluée\",Activités!O:O,6)","v":0},{"$f":"SUMIFS(Activités!F:F,Activités!H:H,\"Affectée\",Activités!O:O,6)","v":0},{"$f":"SUMIFS(Activités!F:F,Activités!H:H,\"Développée\",Activités!O:O,6)","v":0},{"$f":"SUMIFS(Activités!F:F,Activités!H:H,\"Terminée\",Activités!O:O,6)","v":0},{"$f":"SUMIFS(Activités!F:F,Activités!H:H,\"Rejetée\",Activités!O:O,6)","v":0}]
[7,{"$f":"SUMIFS(Activités!F:F,Activités!H:H,\"Créée\",Activités!O:O,7)","v":0},{"$f":"SUMIFS(Activités!F:F,Activités!H:H,\"Prête\",Activités!O:O,7)","v":0},{"$f":"SUMIFS(Activités!F:F,Activités!H:H,\"Evaluée\",Activités!O:O,7)","v":0},{"$f":"SUMIFS(Activités!F:F,Activités!H:H,\"Affectée\",Activités!O:O,7)","v":0},{"$f":"SUMIFS(Activités!F:F,Activités!H:H,\"Développée\",Activités!O:O,7)","v":0},{"$f":"SUMIFS(Activités!F:F,Activités!H:H,\"Terminée\",Activités!O:O,7)","v":0},{"$f":"SUMIFS(Activités!F:F,Activités!H:H,\"Rejetée\",Activités!O:O,7)","v":0}]
[8,{"$f":"SUMIFS(Activités!F:F,Activités!H:H,\"Créée\",Activités!O:O,8)","v":0},{"$f":"SUMIFS(Activités!F:F,Activités!H:H,\"Prête\",Activités!O:O,8)","v":0},{"$f":"SUMIFS(Activités!F:F,Activités!H:H,\"Evaluée\",Activités!O:O,8)","v":0},{"$f":"SUMIFS(Activités!F:F,Activités!H:H,\"Affectée\",Activités!O:O,8)","v":0},{"$f":"SUMIFS(Activités!F:F,Activités!H:H,\"Développée\",Activités!O:O,8)","v":0},{"$f":"SUMIFS(Activités!F:F,Activités!H:H,\"Terminée\",Activités!O:O,8)","v":0},{"$f":"SUMIFS(Activités!F:F,Activités!H:H,\"Rejetée\",Activités!O:O,8)","v":0}]
[]
[]
[null,"Date \ndébut","Date \nfin","Max PPS","point reel créée","point réel   prête","point réel Evaluée","point réel Affectée","point réel Développée","point réel Terminée","point Rejetée","Point Moy x #sans point","# créée","# prête","# Evaluée","# Affectée","# Développée","# Terminée","# Rejetée","# sans point","Non Vide","manquant","mal saisie"]
["All"]
[1,"2016-06-27","2016-07-13",88,{"$f":"SUMIFS(Activités!L:L,Activités!H:H,\"Créée\",Activités!O:O,1)","v":0},{"$f":"SUMIFS(Activités!L:L,Activités!H:H,\"Prête\",Activités!O:O,1)","v":0},{"$f":"SUMIFS(Activités!L:L,Activités!H:H,\"Evaluée\",Activités!O:O,1)","v":0},{"$f":"SUMIFS(Activités!L:L,Activités!H:H,\"Affectée\",Activités!O:O,1)","v":0},{"$f":"SUMIFS(Activités!L:L,Activités!H:H,\"Développée\",Activités!O:O,1)","v":48},{"$f":"SUMIFS(Activités!L:L,Activités!H:H,\"Terminée\",Activités!O:O,1)","v":86.5}]
[2,"2016-08-29","2016-09-09",64,{"$f":"SUMIFS(Activités!L:L,Activités!H:H,\"Créée\",Activités!O:O,2)","v":0},{"$f":"SUMIFS(Activités!L:L,Activités!H:H,\"Prête\",Activités!O:O,2)","v":0},{"$f":"SUMIFS(Activités!L:L,Activités!H:H,\"Evaluée\",Activités!O:O,2)","v":0},{"$f":"SUMIFS(Activités!L:L,Activités!H:H,\"Affectée\",Activités!O:O,2)","v":0},{"$f":"SUMIFS(Activités!L:L,Activités!H:H,\"Développée\",Activités!O:O,2)","v":0},{"$f":"SUMIFS(Activités!L:L,Activités!H:H,\"Terminée\",Activités!O:O,2)","v":0}]
[3,"2016-09-13","2016-09-23",64,{"$f":"SUMIFS(Activités!L:L,Activités!H:H,\"Créée\",Activités!O:O,3)","v":0},{"$f":"SUMIFS(Activités!L:L,Activités!H:H,\"Prête\",Activités!O:O,3)","v":0},{"$f":"SUMIFS(Activités!L:L,Activités!H:H,\"Evaluée\",Activités!O:O,3)","v":0},{"$f":"SUMIFS(Activités!L:L,Activités!H:H,\"Affectée\",Activités!O:O,3)","v":0},{"$f":"SUMIFS(Activités!L:L,Activités!H:H,\"Développée\",Activités!O:O,3)","v":0},{"$f":"SUMIFS(Activités!L:L,Activités!H:H,\"Terminée\",Activités!O:O,3)","v":0}]
[4,null,null,null,{"$f":"SUMIFS(Activités!L:L,Activités!H:H,\"Créée\",Activités!O:O,4)","v":0},{"$f":"SUMIFS(Activités!L:L,Activités!H:H,\"Prête\",Activités!O:O,4)","v":0},{"$f":"SUMIFS(Activités!L:L,Activités!H:H,\"Evaluée\",Activités!O:O,4)","v":0},{"$f":"SUMIFS(Activités!L:L,Activités!H:H,\"Affectée\",Activités!O:O,4)","v":0},{"$f":"SUMIFS(Activités!L:L,Activités!H:H,\"Développée\",Activités!O:O,4)","v":0},{"$f":"SUMIFS(Activités!L:L,Activités!H:H,\"Terminée\",Activités!O:O,4)","v":0}]
[5,null,null,null,{"$f":"SUMIFS(Activités!L:L,Activités!H:H,\"Créée\",Activités!O:O,5)","v":0},{"$f":"SUMIFS(Activités!L:L,Activités!H:H,\"Prête\",Activités!O:O,5)","v":0},{"$f":"SUMIFS(Activités!L:L,Activités!H:H,\"Evaluée\",Activités!O:O,5)","v":0},{"$f":"SUMIFS(Activités!L:L,Activités!H:H,\"Affectée\",Activités!O:O,5)","v":0},{"$f":"SUMIFS(Activités!L:L,Activités!H:H,\"Développée\",Activités!O:O,5)","v":0},{"$f":"SUMIFS(Activités!L:L,Activités!H:H,\"Terminée\",Activités!O:O,5)","v":0}]
[6,null,null,null,{"$f":"SUMIFS(Activités!L:L,Activités!H:H,\"Créée\",Activités!O:O,6)","v":0},{"$f":"SUMIFS(Activités!L:L,Activités!H:H,\"Prête\",Activités!O:O,6)","v":0},{"$f":"SUMIFS(Activités!L:L,Activités!H:H,\"Evaluée\",Activités!O:O,6)","v":0},{"$f":"SUMIFS(Activités!L:L,Activités!H:H,\"Affectée\",Activités!O:O,6)","v":0},{"$f":"SUMIFS(Activités!L:L,Activités!H:H,\"Développée\",Activités!O:O,6)","v":0},{"$f":"SUMIFS(Activités!L:L,Activités!H:H,\"Terminée\",Activités!O:O,6)","v":0}]
[7,null,null,null,{"$f":"SUMIFS(Activités!L:L,Activités!H:H,\"Créée\",Activités!O:O,7)","v":0},{"$f":"SUMIFS(Activités!L:L,Activités!H:H,\"Prête\",Activités!O:O,7)","v":0},{"$f":"SUMIFS(Activités!L:L,Activités!H:H,\"Evaluée\",Activités!O:O,7)","v":0},{"$f":"SUMIFS(Activités!L:L,Activités!H:H,\"Affectée\",Activités!O:O,7)","v":0},{"$f":"SUMIFS(Activités!L:L,Activités!H:H,\"Développée\",Activités!O:O,7)","v":0},{"$f":"SUMIFS(Activités!L:L,Activités!H:H,\"Terminée\",Activités!O:O,7)","v":0}]
[8,null,null,null,{"$f":"SUMIFS(Activités!L:L,Activités!H:H,\"Créée\",Activités!O:O,8)","v":0},{"$f":"SUMIFS(Activités!L:L,Activités!H:H,\"Prête\",Activités!O:O,8)","v":0},{"$f":"SUMIFS(Activités!L:L,Activités!H:H,\"Evaluée\",Activités!O:O,8)","v":0},{"$f":"SUMIFS(Activités!L:L,Activités!H:H,\"Affectée\",Activités!O:O,8)","v":0},{"$f":"SUMIFS(Activités!L:L,Activités!H:H,\"Développée\",Activités!O:O,8)","v":0},{"$f":"SUMIFS(Activités!L:L,Activités!H:H,\"Terminée\",Activités!O:O,8)","v":0}]
[]
[]
["jour J ",12]
["jour J+1",7]
["jour +3",5]

{"sheet":"Synthèse","index":3,"n_rows":44,"n_cols":9,"rows_kept":44,"cut":false,"hidden":false,"merged":[]}
[]
[]
[]
[]
[]
[]
[]
[]
[]
[]
[]
[]
[]
[]
[]
[]
[]
[]
[]
[]
[]
[]
[]
[]
[]
[]
[]
[]
[]
[]
[]
[]
[]
[]
[]
[]
[]
[]
[]
[]
[]
[]
[]
[null,null,null,null,null,null,null,null,"Estimé/reel pour les terminés slt"]

{"sheet":"Règles","index":4,"n_rows":33,"n_cols":4,"rows_kept":33,"cut":false,"hidden":false,"merged":[]}
["#","description"]
[1,"SI charge d'une pers > charge sprint, mettre la cellulle en rouge"]
[2,"les activités sans points sont arbitrairement évaluées à la moyenne des activités avevc points. Le taux d'incertitude représenté est bien évidemment indicatif   "]
[3,"Si le nb d'activté sans point est >0 apres la date de début du sprint, mettre la col en rouge "]
[4,null,"date","valeur calculée  à partir de B3-H3, mais uniquement quand je modifie la date dans B12"]
[5,null,"date"]
[6,null,"date"]
[7]
[8]
[9]
[10]
[11]
[12]
[13]
[14]
[15]
[16]
[17]
[18]
[19]
[20]
[21]
[22]
[23]
[24]
[25]
[26]
[27]
[28]
[29]
[30]
[31]
[32]